[Event "*** Titled Tuesday Blitz"]
[Site "Chess.com"]
[Date "2020.10.27"]
[Round "4"]
[White "Zhani-Z"]
[Black "ural58"]
[Result "1-0"]
[WhiteElo "2532"]
[BlackElo "2338"]
[TimeControl "180+1"]
[EndTime "10:39:41 PDT"]
[Termination "Zhani-Z won by resignation"]

1. e4 {[%clk 0:03:00.9]} 1... d5 {[%clk 0:02:34.7]} 2. exd5 {[%clk 0:03:00.2]}
2... Qxd5 {[%clk 0:02:33.9]} 3. Nc3 {[%clk 0:02:54.3]} 3... Qa5 {[%clk
0:02:12.9]} 4. d4 {[%clk 0:02:53]} 4... Nf6 {[%clk 0:02:10.4]} 5. Nf3 {[%clk
0:02:52.7]} 5... Nc6 {[%clk 0:02:09.8]} 6. Bd2 {[%clk 0:02:35.1]} 6... a6 {[%clk
0:02:01.8]} 7. Bc4 {[%clk 0:01:54.9]} 7... Qh5 {[%clk 0:01:55.1]} 8. d5 {[%clk
0:01:47.8]} 8... Ne5 {[%clk 0:01:28.8]} 9. Nxe5 {[%clk 0:01:30.3]} 9... Qxe5+
{[%clk 0:01:27.5]} 10. Be3 {[%clk 0:01:30.4]} 10... Ng4 {[%clk 0:01:21.9]} 11.
Qd4 {[%clk 0:01:30.8]} 11... b5 {[%clk 0:01:08.3]} 12. Be2 {[%clk 0:01:18.5]}
12... Qxd4 {[%clk 0:01:03.5]} 13. Bxd4 {[%clk 0:01:18.7]} 13... Nh6 {[%clk
0:01:02.4]} 14. O-O {[%clk 0:01:04.4]} 14... Bb7 {[%clk 0:01:01.3]} 15. a3
{[%clk 0:00:47.8]} 15... O-O-O {[%clk 0:00:57.7]} 16. Rfd1 {[%clk 0:00:33.4]}
16... Nf5 {[%clk 0:00:53.5]} 17. Be5 {[%clk 0:00:32.1]} 17... Nd6 {[%clk
0:00:51]} 18. a4 {[%clk 0:00:29.6]} 18... b4 {[%clk 0:00:50.5]} 19. Na2 {[%clk
0:00:29.7]} 19... a5 {[%clk 0:00:49.2]} 20. c3 {[%clk 0:00:30.1]} 20... bxc3
{[%clk 0:00:47.9]} 21. Bxc3 {[%clk 0:00:30.4]} 21... Ne4 {[%clk 0:00:26.4]} 22.
Bxa5 {[%clk 0:00:30.2]} 22... Rxd5 {[%clk 0:00:27.3]} 23. Rxd5 {[%clk
0:00:28.1]} 23... Bxd5 {[%clk 0:00:27]} 24. Nb4 {[%clk 0:00:16.8]} 24... e6
{[%clk 0:00:27.2]} 25. Rc1 {[%clk 0:00:16.1]} 25... Bxb4 {[%clk 0:00:26.4]} 26.
Bxb4 {[%clk 0:00:16.2]} 26... Rd8 {[%clk 0:00:25.2]} 27. f3 {[%clk 0:00:16.8]}
27... Nd6 {[%clk 0:00:24.6]} 28. Kf2 {[%clk 0:00:13.1]} 28... Kd7 {[%clk
0:00:24.5]} 29. Bc3 {[%clk 0:00:11.7]} 29... f6 {[%clk 0:00:24.1]} 30. b4 {[%clk
0:00:12.1]} 30... Bc4 {[%clk 0:00:20.4]} 31. Bd1 {[%clk 0:00:10.9]} 31... Ba6
{[%clk 0:00:18.8]} 32. b5 {[%clk 0:00:11.1]} 32... Bb7 {[%clk 0:00:18.8]} 33.
Ba5 {[%clk 0:00:11.4]} 33... Rc8 {[%clk 0:00:17.8]} 34. Bb4 {[%clk 0:00:11.5]}
34... Bd5 {[%clk 0:00:17.6]} 35. Be2 {[%clk 0:00:11.6]} 35... Ra8 {[%clk
0:00:17.5]} 36. a5 {[%clk 0:00:11.8]} 36... g5 {[%clk 0:00:16.4]} 37. a6 {[%clk
0:00:10.4]} 37... h5 {[%clk 0:00:14]} 38. h3 {[%clk 0:00:09.8]} 38... e5 {[%clk
0:00:12.2]} 39. Ba5 {[%clk 0:00:09.5]} 39... Rc8 {[%clk 0:00:12]} 40. a7 {[%clk
0:00:08.4]} 40... f5 {[%clk 0:00:10.3]} 41. Bd3 {[%clk 0:00:05]} 41... e4 {[%clk
0:00:10.1]} 42. fxe4 {[%clk 0:00:05.2]} 42... Nxe4+ {[%clk 0:00:10.3]} 43. Bxe4
{[%clk 0:00:05.2]} 43... Bxe4 {[%clk 0:00:10.5]} 44. g3 {[%clk 0:00:05.6]} 44...
g4 {[%clk 0:00:10]} 45. h4 {[%clk 0:00:05.5]} 45... Bb7 {[%clk 0:00:08.4]} 46.
Ke3 {[%clk 0:00:05.7]} 46... Be4 {[%clk 0:00:08.5]} 47. Kf4 {[%clk 0:00:05.9]}
47... Ra8 {[%clk 0:00:08.7]} 48. Rxc7+ {[%clk 0:00:03.9]} 48... Ke6 {[%clk
0:00:09]} 49. b6 {[%clk 0:00:04.5]} 49... Rd8 {[%clk 0:00:08.3]} 50. b7 {[%clk
0:00:04.3]} 50... Rd4 {[%clk 0:00:07.2]} 51. b8=Q {[%clk 0:00:04.4]} 1-0

[Event "*** Titled Tuesday Blitz"]
[Site "Chess.com"]
[Date "2020.10.27"]
[Round "4"]
[White "madmax011"]
[Black "chesslh19"]
[Result "0-1"]
[WhiteElo "1821"]
[BlackElo "2213"]
[TimeControl "180+1"]
[EndTime "10:39:43 PDT"]
[Termination "chesslh19 won by checkmate"]

1. d4 {[%clk 0:03:00.9]} 1... Nf6 {[%clk 0:02:59.3]} 2. c4 {[%clk 0:03:00.9]}
2... e6 {[%clk 0:02:59.2]} 3. Nf3 {[%clk 0:03:01]} 3... d5 {[%clk 0:02:58.6]} 4.
g3 {[%clk 0:03:01]} 4... Be7 {[%clk 0:02:58.2]} 5. Bg2 {[%clk 0:03:01.2]} 5...
O-O {[%clk 0:02:56.8]} 6. O-O {[%clk 0:03:01]} 6... dxc4 {[%clk 0:02:57]} 7. Qc2
{[%clk 0:03:00.6]} 7... a6 {[%clk 0:02:57.3]} 8. Qxc4 {[%clk 0:03:00.5]} 8... b5
{[%clk 0:02:58]} 9. Qc2 {[%clk 0:03:00.5]} 9... Bb7 {[%clk 0:02:58.7]} 10. Bg5
{[%clk 0:02:55.4]} 10... Nbd7 {[%clk 0:02:56.1]} 11. a3 {[%clk 0:02:52.6]} 11...
c5 {[%clk 0:02:46.1]} 12. dxc5 {[%clk 0:02:50.9]} 12... Nxc5 {[%clk 0:02:27.3]}
13. Bxf6 {[%clk 0:02:37]} 13... gxf6 {[%clk 0:02:19.9]} 14. Nc3 {[%clk
0:02:35.2]} 14... Rc8 {[%clk 0:02:15.9]} 15. Rac1 {[%clk 0:02:31]} 15... f5
{[%clk 0:02:06.6]} 16. Rfd1 {[%clk 0:02:20.1]} 16... Qb6 {[%clk 0:01:53.3]} 17.
e3 {[%clk 0:01:46.8]} 17... Ne4 {[%clk 0:01:49.3]} 18. Qb3 {[%clk 0:01:42.8]}
18... Nxc3 {[%clk 0:01:42.5]} 19. Rxc3 {[%clk 0:01:42]} 19... Rxc3 {[%clk
0:01:37.1]} 20. Qxc3 {[%clk 0:01:36.9]} 20... Rc8 {[%clk 0:01:31]} 21. Qe5
{[%clk 0:01:33.7]} 21... Qc7 {[%clk 0:01:18.1]} 22. Qxc7 {[%clk 0:00:54.3]}
22... Rxc7 {[%clk 0:01:19]} 23. Nd4 {[%clk 0:00:54.3]} 23... Be4 {[%clk
0:01:01]} 24. Bxe4 {[%clk 0:00:37.6]} 24... fxe4 {[%clk 0:01:01.9]} 25. Kf1
{[%clk 0:00:29.1]} 25... Bf6 {[%clk 0:01:00]} 26. Ke2 {[%clk 0:00:29.1]} 26...
Kg7 {[%clk 0:00:45.6]} 27. Rd2 {[%clk 0:00:19.7]} 27... Rc1 {[%clk 0:00:39.6]}
28. Rc2 {[%clk 0:00:19.4]} 28... Rxc2+ {[%clk 0:00:36.5]} 29. Nxc2 {[%clk
0:00:20.3]} 29... Bxb2 {[%clk 0:00:36.9]} 30. Kd2 {[%clk 0:00:19.6]} 30... a5
{[%clk 0:00:35]} 31. Ke2 {[%clk 0:00:18.3]} 31... f5 {[%clk 0:00:21.6]} 32. f3
{[%clk 0:00:17.9]} 32... exf3+ {[%clk 0:00:21]} 33. Kxf3 {[%clk 0:00:18.8]}
33... Kf6 {[%clk 0:00:20.6]} 34. e4 {[%clk 0:00:18.6]} 34... Ke5 {[%clk
0:00:13.9]} 35. exf5 {[%clk 0:00:18]} 35... exf5 {[%clk 0:00:14.8]} 36. Ke3
{[%clk 0:00:17.7]} 36... Bc3 {[%clk 0:00:12.5]} 37. h3 {[%clk 0:00:15]} 37... h5
{[%clk 0:00:11.6]} 38. Kf3 {[%clk 0:00:14.4]} 38... b4 {[%clk 0:00:08.5]} 39.
axb4 {[%clk 0:00:15.3]} 39... axb4 {[%clk 0:00:09.4]} 40. g4 {[%clk 0:00:15.9]}
40... b3 {[%clk 0:00:08.4]} 41. Na3 {[%clk 0:00:15.1]} 41... fxg4+ {[%clk
0:00:08.1]} 42. hxg4 {[%clk 0:00:16]} 42... h4 {[%clk 0:00:08.2]} 43. Kg2 {[%clk
0:00:14.6]} 43... Kf4 {[%clk 0:00:07.8]} 44. Kh3 {[%clk 0:00:14.7]} 44... Kg5
{[%clk 0:00:08]} 45. Nb1 {[%clk 0:00:14]} 45... Bb4 {[%clk 0:00:08.2]} 46. Kh2
{[%clk 0:00:13.1]} 46... Kxg4 {[%clk 0:00:08.5]} 47. Kg2 {[%clk 0:00:14]} 47...
h3+ {[%clk 0:00:08.3]} 48. Kh2 {[%clk 0:00:14.2]} 48... Kh4 {[%clk 0:00:07.9]}
49. Kh1 {[%clk 0:00:14.3]} 49... Kg3 {[%clk 0:00:07.7]} 50. Kg1 {[%clk
0:00:14.7]} 50... Kf3 {[%clk 0:00:05.5]} 51. Kh2 {[%clk 0:00:13.7]} 51... Ke2
{[%clk 0:00:04.9]} 52. Kxh3 {[%clk 0:00:14]} 52... Kd1 {[%clk 0:00:05.1]} 53.
Kg3 {[%clk 0:00:14.5]} 53... Kc2 {[%clk 0:00:05]} 54. Na3+ {[%clk 0:00:15.4]}
54... Bxa3 {[%clk 0:00:05.1]} 55. Kf3 {[%clk 0:00:16.3]} 55... b2 {[%clk
0:00:05.8]} 56. Ke3 {[%clk 0:00:17.2]} 56... b1=Q {[%clk 0:00:05.7]} 57. Ke4
{[%clk 0:00:18.1]} 57... Qb4+ {[%clk 0:00:05.8]} 58. Kd5 {[%clk 0:00:19]} 58...
Qc5+ {[%clk 0:00:05.8]} 59. Ke6 {[%clk 0:00:19.9]} 59... Kd3 {[%clk 0:00:05.5]}
60. Kf7 {[%clk 0:00:20.8]} 60... Qd6 {[%clk 0:00:05.1]} 61. Kg8 {[%clk
0:00:20.1]} 61... Qe7 {[%clk 0:00:04.6]} 62. Kh8 {[%clk 0:00:19.9]} 62... Bb2+
{[%clk 0:00:04.9]} 63. Kg8 {[%clk 0:00:20.8]} 63... Qg7# {[%clk 0:00:05.5]} 0-1

[Event "*** Titled Tuesday Blitz"]
[Site "Chess.com"]
[Date "2020.10.27"]
[Round "4"]
[White "GameOverBro"]
[Black "Blitzstream"]
[Result "1/2-1/2"]
[WhiteElo "2521"]
[BlackElo "2718"]
[TimeControl "180+1"]
[EndTime "10:39:46 PDT"]
[Termination "Game drawn by repetition"]

1. e4 {[%clk 0:02:56.4]} 1... d5 {[%clk 0:02:56.6]} 2. exd5 {[%clk 0:02:56.2]}
2... Qxd5 {[%clk 0:02:57.5]} 3. Nc3 {[%clk 0:02:56.1]} 3... Qa5 {[%clk
0:02:55.2]} 4. d4 {[%clk 0:02:55.6]} 4... Nf6 {[%clk 0:02:54.3]} 5. Nf3 {[%clk
0:02:55.1]} 5... Nc6 {[%clk 0:02:50.7]} 6. Bb5 {[%clk 0:02:47.2]} 6... Ne4
{[%clk 0:02:49.5]} 7. Bxc6+ {[%clk 0:02:43.9]} 7... bxc6 {[%clk 0:02:48.7]} 8.
Bd2 {[%clk 0:02:43.6]} 8... Nxc3 {[%clk 0:02:46.5]} 9. Bxc3 {[%clk 0:02:42.1]}
9... Qd5 {[%clk 0:02:46.4]} 10. O-O {[%clk 0:02:41.7]} 10... Bg4 {[%clk
0:02:45.9]} 11. Re1 {[%clk 0:02:38.1]} 11... Bxf3 {[%clk 0:02:40.5]} 12. Qxf3
{[%clk 0:02:37.8]} 12... Qxf3 {[%clk 0:02:40.6]} 13. gxf3 {[%clk 0:02:38.7]}
13... e6 {[%clk 0:02:41.1]} 14. a3 {[%clk 0:02:33.6]} 14... O-O-O {[%clk
0:02:39.9]} 15. Rad1 {[%clk 0:02:32.4]} 15... Be7 {[%clk 0:02:40]} 16. Bb4
{[%clk 0:02:31.6]} 16... Bf6 {[%clk 0:02:35.9]} 17. Bc5 {[%clk 0:02:29]} 17...
Rd5 {[%clk 0:02:35.1]} 18. Rd3 {[%clk 0:02:13.6]} 18... a6 {[%clk 0:02:30.2]}
19. Red1 {[%clk 0:02:09.5]} 19... Rhd8 {[%clk 0:02:28.9]} 20. Kg2 {[%clk
0:01:56.6]} 20... h5 {[%clk 0:02:25.3]} 21. h3 {[%clk 0:01:56]} 21... g6 {[%clk
0:02:20.8]} 22. a4 {[%clk 0:01:52.2]} 22... Rf5 {[%clk 0:02:15.2]} 23. b3 {[%clk
0:01:48.4]} 23... Rf4 {[%clk 0:02:02.8]} 24. R1d2 {[%clk 0:01:43.4]} 24... g5
{[%clk 0:01:58.9]} 25. Rd1 {[%clk 0:01:42.6]} 25... Rd5 {[%clk 0:01:55.9]} 26.
R1d2 {[%clk 0:01:41.7]} 26... Rdf5 {[%clk 0:01:55.7]} 27. Rd1 {[%clk 0:01:41.5]}
27... g4 {[%clk 0:01:55.4]} 28. hxg4 {[%clk 0:01:41.4]} 28... hxg4 {[%clk
0:01:54.5]} 29. fxg4 {[%clk 0:01:33.9]} 29... Rxg4+ {[%clk 0:01:53.2]} 30. Rg3
{[%clk 0:01:11.9]} 30... Rgf4 {[%clk 0:01:51.3]} 31. f3 {[%clk 0:01:10.5]} 31...
Rd5 {[%clk 0:01:36.3]} 32. Rd3 {[%clk 0:01:06.5]} 32... Bxd4 {[%clk 0:01:29.5]}
33. Bxd4 {[%clk 0:01:03.2]} 33... Rfxd4 {[%clk 0:01:26.9]} 34. Rc3 {[%clk
0:00:56.7]} 34... Kb7 {[%clk 0:01:23.3]} 35. Rg7 {[%clk 0:00:55.1]} 35... Rf5
{[%clk 0:01:16.5]} 36. Kg3 {[%clk 0:00:51.5]} 36... c5 {[%clk 0:01:14.7]} 37.
Rh7 {[%clk 0:00:48.8]} 37... Kb6 {[%clk 0:00:59.4]} 38. Rh8 {[%clk 0:00:48.8]}
38... Kb7 {[%clk 0:00:53.5]} 39. Rh7 {[%clk 0:00:48.7]} 39... Rb4 {[%clk
0:00:39.2]} 40. Rg7 {[%clk 0:00:40.5]} 40... Kb6 {[%clk 0:00:36.2]} 41. Rg8
{[%clk 0:00:40.3]} 41... Kb7 {[%clk 0:00:36.6]} 42. Rg7 {[%clk 0:00:40.4]} 42...
Kc6 {[%clk 0:00:37]} 43. Rg8 {[%clk 0:00:40.5]} 43... c4 {[%clk 0:00:36.9]} 44.
Rxc4+ {[%clk 0:00:35.1]} 44... Rxc4 {[%clk 0:00:36.8]} 45. bxc4 {[%clk 0:00:36]}
45... Ra5 {[%clk 0:00:30.7]} 46. Rf8 {[%clk 0:00:33.1]} 46... f5 {[%clk
0:00:28.8]} 47. Kf4 {[%clk 0:00:25.8]} 47... Rxa4 {[%clk 0:00:28.5]} 48. Ke5
{[%clk 0:00:25.8]} 48... Rxc4 {[%clk 0:00:28.5]} 49. Kxe6 {[%clk 0:00:26.1]}
49... Rxc2 {[%clk 0:00:19.1]} 50. Rxf5 {[%clk 0:00:26.1]} 50... Re2+ {[%clk
0:00:18.4]} 51. Kf7 {[%clk 0:00:24.5]} 51... Kb6 {[%clk 0:00:18.1]} 52. f4
{[%clk 0:00:23.6]} 52... a5 {[%clk 0:00:18.4]} 53. Re5 {[%clk 0:00:23.2]} 53...
Rf2 {[%clk 0:00:17.5]} 54. f5 {[%clk 0:00:23.5]} 54... a4 {[%clk 0:00:17.4]} 55.
f6 {[%clk 0:00:23.8]} 55... a3 {[%clk 0:00:17.1]} 56. Ke7 {[%clk 0:00:22.3]}
56... a2 {[%clk 0:00:16.5]} 57. Re1 {[%clk 0:00:21.4]} 57... Re2+ {[%clk
0:00:16]} 58. Rxe2 {[%clk 0:00:21.1]} 58... a1=Q {[%clk 0:00:16.3]} 59. Re6+
{[%clk 0:00:19.5]} 59... Kb5 {[%clk 0:00:12.8]} 60. f7 {[%clk 0:00:20.4]} 60...
Qa3+ {[%clk 0:00:12.6]} 61. Ke8 {[%clk 0:00:20.5]} 61... Qa8+ {[%clk 0:00:12.1]}
62. Ke7 {[%clk 0:00:20.7]} 62... Qa3+ {[%clk 0:00:11.9]} 63. Ke8 {[%clk
0:00:21]} 63... Qa8+ {[%clk 0:00:09.7]} 64. Ke7 {[%clk 0:00:21.5]} 64... Qa3+
{[%clk 0:00:09.5]} 1/2-1/2

[Event "*** Titled Tuesday Blitz"]
[Site "Chess.com"]
[Date "2020.10.27"]
[Round "4"]
[White "Lady_Nika"]
[Black "Jungle_Jaguar"]
[Result "1-0"]
[WhiteElo "2455"]
[BlackElo "2630"]
[TimeControl "180+1"]
[EndTime "10:39:46 PDT"]
[Termination "Lady_Nika won by resignation"]

1. d4 {[%clk 0:03:00.9]} 1... Nf6 {[%clk 0:02:56.1]} 2. e3 {[%clk 0:03:00.3]}
2... g6 {[%clk 0:02:56.1]} 3. Bd3 {[%clk 0:02:59.4]} 3... Bg7 {[%clk 0:02:56.6]}
4. f4 {[%clk 0:02:59.5]} 4... O-O {[%clk 0:02:57]} 5. Nf3 {[%clk 0:02:59.8]}
5... d6 {[%clk 0:02:57.5]} 6. O-O {[%clk 0:03:00]} 6... b6 {[%clk 0:02:58.2]} 7.
c3 {[%clk 0:03:00.4]} 7... Bb7 {[%clk 0:02:58.8]} 8. Nbd2 {[%clk 0:03:00.7]}
8... Nbd7 {[%clk 0:02:59.5]} 9. e4 {[%clk 0:03:00.9]} 9... c5 {[%clk 0:02:57.2]}
10. d5 {[%clk 0:03:00.6]} 10... a6 {[%clk 0:02:55.8]} 11. c4 {[%clk 0:03:00.5]}
11... Qc7 {[%clk 0:02:43.9]} 12. Qe2 {[%clk 0:03:00.2]} 12... Rae8 {[%clk
0:02:42.4]} 13. Rb1 {[%clk 0:02:44.1]} 13... e5 {[%clk 0:02:38.1]} 14. fxe5
{[%clk 0:02:41.9]} 14... Nxe5 {[%clk 0:02:38.2]} 15. Nxe5 {[%clk 0:02:37.4]}
15... Rxe5 {[%clk 0:02:38.6]} 16. b3 {[%clk 0:02:37.4]} 16... Re7 {[%clk
0:02:17.5]} 17. Qf3 {[%clk 0:02:33.8]} 17... Nd7 {[%clk 0:02:16.5]} 18. Bc2
{[%clk 0:02:30.5]} 18... Ne5 {[%clk 0:02:16.7]} 19. Qg3 {[%clk 0:02:30.4]} 19...
Bc8 {[%clk 0:02:17.2]} 20. Bb2 {[%clk 0:02:29.4]} 20... b5 {[%clk 0:02:10.5]}
21. Nf3 {[%clk 0:02:19.9]} 21... Nxf3+ {[%clk 0:01:55.1]} 22. Rxf3 {[%clk
0:02:18.6]} 22... Bxb2 {[%clk 0:01:54.7]} 23. Rxb2 {[%clk 0:02:18.7]} 23... Re5
{[%clk 0:01:53.8]} 24. Bd3 {[%clk 0:02:16.4]} 24... b4 {[%clk 0:01:51.6]} 25.
Rbf2 {[%clk 0:02:15.9]} 25... Qe7 {[%clk 0:01:40.2]} 26. Rf6 {[%clk 0:02:10.5]}
26... Kg7 {[%clk 0:01:39.9]} 27. Qf4 {[%clk 0:02:05.6]} 27... a5 {[%clk
0:01:38.8]} 28. h3 {[%clk 0:02:03]} 28... Bd7 {[%clk 0:01:33.6]} 29. g4 {[%clk
0:02:01.3]} 29... h5 {[%clk 0:01:18.7]} 30. Rf3 {[%clk 0:01:42.3]} 30... g5
{[%clk 0:01:10.3]} 31. Qg3 {[%clk 0:01:30.5]} 31... hxg4 {[%clk 0:01:09.9]} 32.
hxg4 {[%clk 0:01:21.8]} 32... Qxf6 {[%clk 0:01:09.8]} 33. Rxf6 {[%clk
0:01:21.5]} 33... Kxf6 {[%clk 0:01:10.7]} 34. Qf3+ {[%clk 0:01:20.5]} 34... Ke7
{[%clk 0:01:11]} 35. Qh3 {[%clk 0:01:20.1]} 35... Rg8 {[%clk 0:01:04.9]} 36. Qh7
{[%clk 0:01:19.1]} 36... Rg6 {[%clk 0:01:03.1]} 37. Qh8 {[%clk 0:01:17.6]} 37...
Bxg4 {[%clk 0:01:03.4]} 38. Qa8 {[%clk 0:01:15.9]} 38... Bd7 {[%clk 0:00:57.3]}
39. Qxa5 {[%clk 0:01:15.5]} 39... g4 {[%clk 0:00:57.9]} 40. Qa8 {[%clk
0:01:14.7]} 40... Rh5 {[%clk 0:00:56.4]} 41. e5 {[%clk 0:01:12.5]} 41... Rgh6
{[%clk 0:00:51.2]} 42. exd6+ {[%clk 0:01:11.5]} 42... Rxd6 {[%clk 0:00:48.6]}
43. Qa7 {[%clk 0:01:05.5]} 43... Rh3 {[%clk 0:00:42.2]} 44. Bf1 {[%clk
0:01:02.8]} 44... Rg3+ {[%clk 0:00:42.2]} 45. Kf2 {[%clk 0:01:00.8]} 45... Rf3+
{[%clk 0:00:41.5]} 46. Kg2 {[%clk 0:01:01.2]} 46... Rdf6 {[%clk 0:00:30.4]} 47.
Qxc5+ {[%clk 0:01:00.7]} 47... Ke8 {[%clk 0:00:31]} 48. Be2 {[%clk 0:00:59.7]}
48... R3f5 {[%clk 0:00:17.3]} 49. Qe3+ {[%clk 0:00:59]} 49... Kf8 {[%clk
0:00:16.1]} 50. Kg3 {[%clk 0:00:53.6]} 50... Kg7 {[%clk 0:00:14.7]} 51. Qe4
{[%clk 0:00:50.6]} 51... Rg6 {[%clk 0:00:13]} 52. Qd4+ {[%clk 0:00:49.3]} 52...
Kg8 {[%clk 0:00:12.8]} 53. c5 {[%clk 0:00:49.4]} 53... Rh5 {[%clk 0:00:11.5]}
54. c6 {[%clk 0:00:48.3]} 54... Rh3+ {[%clk 0:00:09.8]} 55. Kg2 {[%clk
0:00:48.4]} 55... Bf5 {[%clk 0:00:10.5]} 56. d6 {[%clk 0:00:47.8]} 56... g3
{[%clk 0:00:10.6]} 57. d7 {[%clk 0:00:45.2]} 57... Rh2+ {[%clk 0:00:10.6]} 58.
Kg1 {[%clk 0:00:45.6]} 58... Kh7 {[%clk 0:00:01.6]} 59. d8=Q {[%clk 0:00:45.2]}
59... Rg8 {[%clk 0:00:02.2]} 60. Q8h4+ {[%clk 0:00:44.1]} 60... Rxh4 {[%clk
0:00:01.6]} 61. Qxh4+ {[%clk 0:00:43.9]} 61... Kg7 {[%clk 0:00:02.3]} 62. Qg5+
{[%clk 0:00:43.5]} 62... Bg6 {[%clk 0:00:01.3]} 63. c7 {[%clk 0:00:43.5]} 63...
Rc8 {[%clk 0:00:01.4]} 64. Qe5+ {[%clk 0:00:43.3]} 64... Kg8 {[%clk 0:00:01.9]}
65. Ba6 {[%clk 0:00:43.5]} 65... Rxc7 {[%clk 0:00:01.6]} 66. Qxc7 {[%clk
0:00:43.1]} 1-0

[Event "*** Titled Tuesday Blitz"]
[Site "Chess.com"]
[Date "2020.10.27"]
[Round "4"]
[White "Kaslask"]
[Black "PavelShkapenko"]
[Result "0-1"]
[WhiteElo "2358"]
[BlackElo "2634"]
[TimeControl "180+1"]
[EndTime "10:39:47 PDT"]
[Termination "PavelShkapenko won on time"]

1. d4 {[%clk 0:03:00.9]} 1... Nf6 {[%clk 0:02:59.4]} 2. c4 {[%clk 0:03:00.7]}
2... e6 {[%clk 0:02:59.9]} 3. Nf3 {[%clk 0:02:59.8]} 3... Bb4+ {[%clk
0:03:00.3]} 4. Bd2 {[%clk 0:03:00]} 4... Qe7 {[%clk 0:03:00.3]} 5. g3 {[%clk
0:02:59.7]} 5... Nc6 {[%clk 0:03:00.3]} 6. Bg2 {[%clk 0:02:58.1]} 6... Bxd2+
{[%clk 0:02:58.3]} 7. Nbxd2 {[%clk 0:02:56.1]} 7... d6 {[%clk 0:02:58.2]} 8. O-O
{[%clk 0:02:55.4]} 8... a5 {[%clk 0:02:58.7]} 9. e4 {[%clk 0:02:50.8]} 9... e5
{[%clk 0:02:58.9]} 10. d5 {[%clk 0:02:49.9]} 10... Nb8 {[%clk 0:02:59.2]} 11.
Ne1 {[%clk 0:02:49.5]} 11... O-O {[%clk 0:02:58.8]} 12. Nd3 {[%clk 0:02:49.1]}
12... Na6 {[%clk 0:02:58.9]} 13. b3 {[%clk 0:02:42]} 13... Bg4 {[%clk
0:02:56.6]} 14. f3 {[%clk 0:02:40.4]} 14... Bd7 {[%clk 0:02:56.6]} 15. a3 {[%clk
0:02:37.7]} 15... c6 {[%clk 0:02:55.6]} 16. Qb1 {[%clk 0:02:31.8]} 16... Qd8
{[%clk 0:02:51.7]} 17. Kh1 {[%clk 0:02:30.5]} 17... cxd5 {[%clk 0:02:50.5]} 18.
cxd5 {[%clk 0:02:29.5]} 18... Bb5 {[%clk 0:02:50.1]} 19. Nc4 {[%clk 0:02:26.2]}
19... Bxc4 {[%clk 0:02:49.6]} 20. bxc4 {[%clk 0:02:25.8]} 20... Qc7 {[%clk
0:02:49.8]} 21. Qb5 {[%clk 0:02:23.6]} 21... Nd7 {[%clk 0:02:49.8]} 22. Rfc1
{[%clk 0:02:17.5]} 22... Nac5 {[%clk 0:02:48.8]} 23. Nxc5 {[%clk 0:02:16.3]}
23... Nxc5 {[%clk 0:02:47.6]} 24. Rab1 {[%clk 0:02:12.5]} 24... f5 {[%clk
0:02:41.8]} 25. exf5 {[%clk 0:02:02.6]} 25... Rxf5 {[%clk 0:02:39.7]} 26. Qb6
{[%clk 0:02:01.4]} 26... Qe7 {[%clk 0:02:38.8]} 27. Rb5 {[%clk 0:01:58.3]} 27...
Raf8 {[%clk 0:02:15]} 28. Rxc5 {[%clk 0:01:54]} 28... dxc5 {[%clk 0:02:14.8]}
29. d6 {[%clk 0:01:53.3]} 29... Qg5 {[%clk 0:02:14.8]} 30. Rd1 {[%clk
0:01:50.1]} 30... Rd8 {[%clk 0:01:33]} 31. Qxb7 {[%clk 0:01:45]} 31... Qe3
{[%clk 0:01:01.9]} 32. Qe7 {[%clk 0:01:35.8]} 32... Rff8 {[%clk 0:01:01.5]} 33.
d7 {[%clk 0:01:27.5]} 33... Qxa3 {[%clk 0:00:58.4]} 34. h4 {[%clk 0:01:07.8]}
34... Qb3 {[%clk 0:00:54.2]} 35. Qd6 {[%clk 0:01:05.6]} 35... Qxc4 {[%clk
0:00:50]} 36. Bh3 {[%clk 0:01:04]} 36... Qc3 {[%clk 0:00:41]} 37. Be6+ {[%clk
0:00:59]} 37... Kh8 {[%clk 0:00:38]} 38. Bd5 {[%clk 0:00:57.8]} 38... c4 {[%clk
0:00:24.2]} 39. Be4 {[%clk 0:00:56.2]} 39... Qb4 {[%clk 0:00:24.1]} 40. Qxe5
{[%clk 0:00:52]} 40... Qa4 {[%clk 0:00:19.7]} 41. Rd2 {[%clk 0:00:46.4]} 41...
Rxd7 {[%clk 0:00:17.3]} 42. Rc2 {[%clk 0:00:37]} 42... Qb4 {[%clk 0:00:11.7]}
43. Qh5 {[%clk 0:00:32.3]} 43... g6 {[%clk 0:00:12.1]} 44. Qe5+ {[%clk
0:00:30.9]} 44... Rg7 {[%clk 0:00:11.2]} 45. h5 {[%clk 0:00:28.8]} 45... gxh5
{[%clk 0:00:10.3]} 46. Rh2 {[%clk 0:00:23.8]} 46... Qe1+ {[%clk 0:00:08.5]} 47.
Kg2 {[%clk 0:00:23.9]} 47... Qe2+ {[%clk 0:00:08.7]} 48. Kh3 {[%clk 0:00:21.1]}
48... Qf1+ {[%clk 0:00:07.8]} 49. Kh4 {[%clk 0:00:20.4]} 49... Qc1 {[%clk
0:00:07.7]} 50. Rb2 {[%clk 0:00:18.2]} 50... Qh6 {[%clk 0:00:06.4]} 51. Rb7
{[%clk 0:00:17.4]} 51... Qf6+ {[%clk 0:00:06.5]} 52. Qxf6 {[%clk 0:00:15.3]}
52... Rxf6 {[%clk 0:00:07]} 53. Rb8+ {[%clk 0:00:13.2]} 53... Rg8 {[%clk
0:00:07.6]} 54. Rb5 {[%clk 0:00:12.9]} 54... a4 {[%clk 0:00:06]} 55. Rxh5 {[%clk
0:00:12.3]} 55... h6 {[%clk 0:00:06.4]} 56. Ra5 {[%clk 0:00:11.6]} 56... Rc8
{[%clk 0:00:06.4]} 57. Rxa4 {[%clk 0:00:11.3]} 57... c3 {[%clk 0:00:06.8]} 58.
Ra2 {[%clk 0:00:09.3]} 58... Rb6 {[%clk 0:00:07.1]} 59. Kh5 {[%clk 0:00:07.8]}
59... Rb2 {[%clk 0:00:07.1]} 0-1